[Event "Titled Tuesday Blitz November 07 Late 2023"]
[White "Tikhonov, Viacheslav"]
[Black "Koellner, Ruben Gideon"]
[WhiteFideId "44196407"]
[BlackFideId "12993093"]
[WhiteElo "2532"]
[BlackElo "2699"]
[Result "1-0"]
[Round "6"]
[TimeControl "180+1"]
[Date "2023.11.07"]
[WhiteClock "0:00:22"]
[BlackClock "0:00:16"]
[Board "47"]

1. d4 {[%clk 0:03:00]}  d6 {[%clk 0:02:59]} 2. e4 {[%clk 0:02:59]}  Nf6 {[%clk 0:02:59]} 3. Nc3 {[%clk 0:02:58]}  e5 {[%clk 0:03:00]} 4. Nf3 {[%clk 0:02:57]}  Nbd7 {[%clk 0:03:00]} 5. Bc4 {[%clk 0:02:56]}  Be7 {[%clk 0:03:01]} 6. a4 {[%clk 0:02:55]}  c6 {[%clk 0:03:01]} 7. O-O {[%clk 0:02:54]}  h6 {[%clk 0:03:01]} 8. Ba2 {[%clk 0:02:48]}  Qc7 {[%clk 0:03:01]} 9. h3 {[%clk 0:02:42]}  Nf8 {[%clk 0:03:01]} 10. Be3 {[%clk 0:02:43]}  g5 {[%clk 0:03:01]} 11. d5 {[%clk 0:02:37]}  Ng6 {[%clk 0:03:01]} 12. dxc6 {[%clk 0:02:31]}  bxc6 {[%clk 0:03:00]} 13. Nd2 {[%clk 0:02:28]}  g4 {[%clk 0:02:57]} 14. hxg4 {[%clk 0:02:26]}  Bxg4 {[%clk 0:02:58]} 15. f3 {[%clk 0:02:26]}  Be6 {[%clk 0:02:59]} 16. Bxe6 {[%clk 0:02:21]}  fxe6 {[%clk 0:03:00]} 17. Nc4 {[%clk 0:02:21]}  d5 {[%clk 0:02:53]} 18. exd5 {[%clk 0:02:04]}  exd5 {[%clk 0:02:54]} 19. Qd3 {[%clk 0:02:02]}  Kf7 {[%clk 0:02:52]} 20. f4 {[%clk 0:01:44]}  e4 {[%clk 0:02:45]} 21. Qd4 {[%clk 0:01:22]}  dxc4 {[%clk 0:02:42]} 22. Qxc4+ {[%clk 0:01:20]}  Kg7 {[%clk 0:02:42]} 23. Bd4 {[%clk 0:01:16]}  Qd7 {[%clk 0:02:37]} 24. Rad1 {[%clk 0:01:14]}  Qf5 {[%clk 0:02:34]} 25. Qxc6 {[%clk 0:01:11]}  Rac8 {[%clk 0:02:33]} 26. Qb7 {[%clk 0:01:11]}  Rb8 {[%clk 0:02:29]} 27. Qxa7 {[%clk 0:01:09]}  Ra8 {[%clk 0:02:28]} 28. Qb7 {[%clk 0:01:04]}  Rhb8 {[%clk 0:02:27]} 29. Qc7 {[%clk 0:01:04]}  Rc8 {[%clk 0:02:28]} 30. Qb7 {[%clk 0:01:04]}  Rab8 {[%clk 0:02:28]} 31. Qa7 {[%clk 0:01:05]}  Rxb2 {[%clk 0:02:15]} 32. Nd5 {[%clk 0:01:04]}  Qxd5 {[%clk 0:02:01]} 33. Bxf6+ {[%clk 0:01:01]}  Kxf6 {[%clk 0:02:01]} 34. Rxd5 {[%clk 0:01:01]}  Rcxc2 {[%clk 0:02:01]} 35. Qd4+ {[%clk 0:00:58]}  Kf7 {[%clk 0:01:58]} 36. Qxe4 {[%clk 0:00:58]}  Nh4 {[%clk 0:01:51]} 37. Qh7+ {[%clk 0:00:42]}  Kf8 {[%clk 0:01:36]} 38. Qxh6+ {[%clk 0:00:38]}  Kf7 {[%clk 0:01:37]} 39. Qh7+ {[%clk 0:00:31]}  Kf8 {[%clk 0:01:37]} 40. Rg5 {[%clk 0:00:28]}  Rxg2+ {[%clk 0:01:18]} 41. Rxg2 {[%clk 0:00:28]}  Rxg2+ {[%clk 0:01:19]} 42. Kh1 {[%clk 0:00:28]}  Rg7 {[%clk 0:01:20]} 43. Qh8+ {[%clk 0:00:26]}  Rg8 {[%clk 0:01:18]} 44. Qh6+ {[%clk 0:00:25]}  Kf7 {[%clk 0:01:18]} 45. Rg1 {[%clk 0:00:23]}  Rxg1+ {[%clk 0:00:34]} 46. Kxg1 {[%clk 0:00:23]}  Bf6 {[%clk 0:00:27]} 47. Kf1 {[%clk 0:00:23]}  Ke6 {[%clk 0:00:24]} 48. a5 {[%clk 0:00:23]}  Nf5 {[%clk 0:00:23]} 49. Qh3 {[%clk 0:00:22]}  Bd4 {[%clk 0:00:20]} 50. a6 {[%clk 0:00:22]}  Kf6 {[%clk 0:00:20]} 51. Qb3 {[%clk 0:00:21]}  Ne3+ {[%clk 0:00:19]} 52. Ke2 {[%clk 0:00:21]}  Kf5 {[%clk 0:00:19]} 53. Qxe3 {[%clk 0:00:21]}  Bxe3 {[%clk 0:00:16]} 54. Kxe3 {[%clk 0:00:22]} 1-0


[Site "https://www.chess.com"]

[Event "Titled Tuesday Blitz November 07 Late 2023"]
[White "Arifarsky"]
[Black "Sreyas Payyappat"]
[BlackFideId "46674969"]
[WhiteElo "2681"]
[BlackElo "2510"]
[Result "1-0"]
[Round "6"]
[TimeControl "180+1"]
[Date "2023.11.07"]
[WhiteClock "0:00:22"]
[BlackClock "0:00:00"]
[Board "53"]

1. e4 {[%clk 0:03:00]}  c6 {[%clk 0:03:00]} 2. d4 {[%clk 0:02:59]}  d5 {[%clk 0:03:00]} 3. e5 {[%clk 0:03:00]}  Bf5 {[%clk 0:03:00]} 4. Nc3 {[%clk 0:02:59]}  e6 {[%clk 0:02:59]} 5. g4 {[%clk 0:03:00]}  Bg6 {[%clk 0:02:59]} 6. Nge2 {[%clk 0:03:00]}  c5 {[%clk 0:02:56]} 7. Be3 {[%clk 0:02:57]}  Nc6 {[%clk 0:02:56]} 8. dxc5 {[%clk 0:02:51]}  Nxe5 {[%clk 0:02:52]} 9. Nd4 {[%clk 0:02:38]}  Bxc5 {[%clk 0:02:46]} 10. Nxe6 {[%clk 0:02:26]}  fxe6 {[%clk 0:02:42]} 11. Bxc5 {[%clk 0:02:26]}  Ne7 {[%clk 0:02:40]} 12. Bb5+ {[%clk 0:02:24]}  N7c6 {[%clk 0:02:21]} 13. f4 {[%clk 0:02:12]}  Nd7 {[%clk 0:01:56]} 14. Be3 {[%clk 0:01:49]}  O-O {[%clk 0:01:54]} 15. O-O {[%clk 0:01:48]}  a6 {[%clk 0:01:39]} 16. Bd3 {[%clk 0:01:38]}  d4 {[%clk 0:00:56]} 17. Bxg6 {[%clk 0:01:31]}  dxe3 {[%clk 0:00:57]} 18. Be4 {[%clk 0:01:20]}  Nf6 {[%clk 0:00:54]} 19. Bxc6 {[%clk 0:01:08]}  bxc6 {[%clk 0:00:50]} 20. Qe2 {[%clk 0:00:37]}  Qd2 {[%clk 0:00:44]} 21. h3 {[%clk 0:00:29]}  Rfd8 {[%clk 0:00:39]} 22. Rad1 {[%clk 0:00:28]}  Qxe2 {[%clk 0:00:36]} 23. Nxe2 {[%clk 0:00:29]}  Rd2 {[%clk 0:00:20]} 24. Rxd2 {[%clk 0:00:27]}  exd2 {[%clk 0:00:21]} 25. Rd1 {[%clk 0:00:27]}  Rd8 {[%clk 0:00:19]} 26. Kf2 {[%clk 0:00:25]}  Nd5 {[%clk 0:00:02]} 27. Rxd2 {[%clk 0:00:23]}  Rf8 {[%clk 0:00:02]} 28. Kg3 {[%clk 0:00:23]}  g6 {[%clk 0:00:00]} 29. c4 {[%clk 0:00:22]} 1-0


[Site "https://www.chess.com"]

[Event "Titled Tuesday Blitz November 07 Late 2023"]
[White "Kochiev, Ivan"]
[Black "Kavutskiy, Konstantin"]
[WhiteFideId "2917890"]
[BlackFideId "2026384"]
[WhiteElo "2511"]
[BlackElo "2680"]
[Result "1-0"]
[Round "6"]
[TimeControl "180+1"]
[Date "2023.11.07"]
[WhiteClock "0:00:12"]
[BlackClock "0:00:32"]
[Board "54"]

1. e4 {[%clk 0:03:00]}  c5 {[%clk 0:02:53]} 2. Nf3 {[%clk 0:03:01]}  Nc6 {[%clk 0:02:53]} 3. d4 {[%clk 0:03:01]}  cxd4 {[%clk 0:02:54]} 4. Nxd4 {[%clk 0:03:02]}  Nf6 {[%clk 0:02:54]} 5. Nc3 {[%clk 0:03:02]}  e5 {[%clk 0:02:54]} 6. Ndb5 {[%clk 0:03:02]}  d6 {[%clk 0:02:55]} 7. Bg5 {[%clk 0:03:02]}  a6 {[%clk 0:02:55]} 8. Na3 {[%clk 0:03:03]}  b5 {[%clk 0:02:56]} 9. Nd5 {[%clk 0:03:04]}  Be7 {[%clk 0:02:56]} 10. Bxf6 {[%clk 0:03:04]}  Bxf6 {[%clk 0:02:56]} 11. c3 {[%clk 0:03:05]}  Rb8 {[%clk 0:02:56]} 12. Nc2 {[%clk 0:03:05]}  Bg5 {[%clk 0:02:57]} 13. Be2 {[%clk 0:03:03]}  O-O {[%clk 0:02:57]} 14. Nce3 {[%clk 0:03:02]}  Bxe3 {[%clk 0:02:56]} 15. Nxe3 {[%clk 0:03:02]}  Be6 {[%clk 0:02:54]} 16. O-O {[%clk 0:03:02]}  a5 {[%clk 0:02:47]} 17. Qd3 {[%clk 0:02:45]}  Qc7 {[%clk 0:02:44]} 18. Rfd1 {[%clk 0:02:45]}  Rfd8 {[%clk 0:02:43]} 19. Bg4 {[%clk 0:02:22]}  Ne7 {[%clk 0:02:34]} 20. h3 {[%clk 0:02:04]}  Ng6 {[%clk 0:02:31]} 21. Nd5 {[%clk 0:01:59]}  Qb7 {[%clk 0:02:27]} 22. a4 {[%clk 0:01:51]}  Bxd5 {[%clk 0:02:21]} 23. Qxd5 {[%clk 0:01:51]}  Qxd5 {[%clk 0:02:21]} 24. Rxd5 {[%clk 0:01:51]}  bxa4 {[%clk 0:02:21]} 25. Ra2 {[%clk 0:01:39]}  a3 {[%clk 0:02:14]} 26. Rxa3 {[%clk 0:01:29]}  Rxb2 {[%clk 0:02:14]} 27. Raxa5 {[%clk 0:01:26]}  Rb1+ {[%clk 0:02:02]} 28. Kh2 {[%clk 0:01:25]}  Rc1 {[%clk 0:02:02]} 29. Ra6 {[%clk 0:01:17]}  Rxc3 {[%clk 0:01:58]} 30. Raxd6 {[%clk 0:01:17]}  Rxd6 {[%clk 0:01:55]} 31. Rxd6 {[%clk 0:01:18]}  Rc2 {[%clk 0:01:45]} 32. Kg1 {[%clk 0:01:14]}  Rc5 {[%clk 0:01:32]} 33. h4 {[%clk 0:01:00]}  h6 {[%clk 0:01:26]} 34. Bf5 {[%clk 0:00:54]}  Nf8 {[%clk 0:01:24]} 35. h5 {[%clk 0:00:51]}  Rc1+ {[%clk 0:01:18]} 36. Kh2 {[%clk 0:00:51]}  Rc2 {[%clk 0:01:17]} 37. Kg3 {[%clk 0:00:50]}  Rc3+ {[%clk 0:01:16]} 38. f3 {[%clk 0:00:50]}  Rc7 {[%clk 0:01:12]} 39. Rd8 {[%clk 0:00:49]}  Re7 {[%clk 0:01:12]} 40. Kf2 {[%clk 0:00:46]}  g6 {[%clk 0:01:11]} 41. hxg6 {[%clk 0:00:45]}  fxg6 {[%clk 0:01:12]} 42. Bxg6 {[%clk 0:00:41]}  Kg7 {[%clk 0:01:13]} 43. Bf5 {[%clk 0:00:41]}  Nh7 {[%clk 0:01:06]} 44. Rd7 {[%clk 0:00:28]}  Rxd7 {[%clk 0:01:02]} 45. Bxd7 {[%clk 0:00:29]}  Kf6 {[%clk 0:01:02]} 46. g3 {[%clk 0:00:23]}  Ng5 {[%clk 0:01:03]} 47. Bf5 {[%clk 0:00:20]}  Nf7 {[%clk 0:01:01]} 48. Ke3 {[%clk 0:00:13]}  Nd6 {[%clk 0:01:02]} 49. Bd7 {[%clk 0:00:11]}  Nc4+ {[%clk 0:01:00]} 50. Kd3 {[%clk 0:00:10]}  Nd6 {[%clk 0:01:01]} 51. f4 {[%clk 0:00:07]}  Nf7 {[%clk 0:00:51]} 52. Bg4 {[%clk 0:00:06]}  Nd6 {[%clk 0:00:50]} 53. Bf3 {[%clk 0:00:06]}  Ke6 {[%clk 0:00:47]} 54. Kc3 {[%clk 0:00:06]}  h5 {[%clk 0:00:42]} 55. Kd3 {[%clk 0:00:02]}  h4 {[%clk 0:00:31]} 56. f5+ {[%clk 0:00:01]}  Nxf5 {[%clk 0:00:32]} 57. Bg4 {[%clk 0:00:02]}  hxg3 {[%clk 0:00:26]} 58. Bxf5+ {[%clk 0:00:02]}  Kf6 {[%clk 0:00:26]} 59. Ke3 {[%clk 0:00:03]}  Kg5 {[%clk 0:00:24]} 60. Kf3 {[%clk 0:00:03]}  Kh4 {[%clk 0:00:25]} 61. Kg2 {[%clk 0:00:04]}  Kg5 {[%clk 0:00:22]} 62. Kxg3 {[%clk 0:00:05]}  Kf6 {[%clk 0:00:23]} 63. Kg4 {[%clk 0:00:06]}  Ke7 {[%clk 0:00:24]} 64. Kg5 {[%clk 0:00:06]}  Kf7 {[%clk 0:00:25]} 65. Bh7 {[%clk 0:00:06]}  Ke7 {[%clk 0:00:26]} 66. Kf5 {[%clk 0:00:06]}  Kf7 {[%clk 0:00:26]} 67. Kxe5 {[%clk 0:00:07]}  Ke7 {[%clk 0:00:27]} 68. Kd5 {[%clk 0:00:07]}  Kd7 {[%clk 0:00:28]} 69. e5 {[%clk 0:00:08]}  Ke7 {[%clk 0:00:28]} 70. e6 {[%clk 0:00:09]}  Kd8 {[%clk 0:00:29]} 71. Ke5 {[%clk 0:00:10]}  Ke8 {[%clk 0:00:30]} 72. Kd6 {[%clk 0:00:11]}  Kd8 {[%clk 0:00:31]} 73. e7+ {[%clk 0:00:11]}  Ke8 {[%clk 0:00:32]} 74. Bg6# {[%clk 0:00:12]} 1-0


[Site "https://www.chess.com"]

[Event "Titled Tuesday Blitz November 07 Late 2023"]
[White "Gubajdullin, Alexei"]
[Black "TimGrutter03"]
[WhiteFideId "4141202"]
[WhiteElo "2661"]
[BlackElo "2509"]
[Result "0-1"]
[Round "6"]
[TimeControl "180+1"]
[Date "2023.11.07"]
[WhiteClock "0:00:17"]
[BlackClock "0:00:08"]
[Board "55"]

1. d4 {[%clk 0:03:00]}  Nf6 {[%clk 0:02:58]} 2. Nf3 {[%clk 0:03:00]}  e6 {[%clk 0:02:59]} 3. Bf4 {[%clk 0:03:00]}  b6 {[%clk 0:02:59]} 4. e3 {[%clk 0:03:00]}  Bb7 {[%clk 0:02:59]} 5. Be2 {[%clk 0:03:01]}  Be7 {[%clk 0:03:00]} 6. O-O {[%clk 0:03:01]}  O-O {[%clk 0:03:01]} 7. h3 {[%clk 0:03:01]}  d6 {[%clk 0:03:01]} 8. a4 {[%clk 0:03:00]}  a5 {[%clk 0:03:00]} 9. Nc3 {[%clk 0:03:00]}  Na6 {[%clk 0:02:59]} 10. Nd2 {[%clk 0:03:00]}  Nb4 {[%clk 0:02:58]} 11. Rc1 {[%clk 0:02:58]}  c5 {[%clk 0:02:52]} 12. Nb5 {[%clk 0:02:57]}  Nc6 {[%clk 0:02:47]} 13. Nc4 {[%clk 0:02:54]}  d5 {[%clk 0:02:26]} 14. Bc7 {[%clk 0:02:54]}  Qe8 {[%clk 0:02:17]} 15. Nxb6 {[%clk 0:02:47]}  Ra6 {[%clk 0:02:15]} 16. c4 {[%clk 0:02:24]}  cxd4 {[%clk 0:02:01]} 17. Nxd4 {[%clk 0:02:17]}  Nxd4 {[%clk 0:01:56]} 18. exd4 {[%clk 0:02:15]}  dxc4 {[%clk 0:01:37]} 19. Bxc4 {[%clk 0:02:14]}  Qc6 {[%clk 0:01:37]} 20. d5 {[%clk 0:01:58]}  Qxc7 {[%clk 0:01:34]} 21. Bxa6 {[%clk 0:01:49]}  Qxb6 {[%clk 0:01:32]} 22. Bxb7 {[%clk 0:01:45]}  Qxb7 {[%clk 0:01:33]} 23. dxe6 {[%clk 0:01:40]}  fxe6 {[%clk 0:01:34]} 24. Qe2 {[%clk 0:01:40]}  Qb6 {[%clk 0:01:15]} 25. Rfe1 {[%clk 0:01:34]}  Bc5 {[%clk 0:00:52]} 26. Qxe6+ {[%clk 0:01:31]}  Qxe6 {[%clk 0:00:53]} 27. Rxe6 {[%clk 0:01:31]}  Bd4 {[%clk 0:00:53]} 28. Rc2 {[%clk 0:01:26]}  Rb8 {[%clk 0:00:49]} 29. Ra6 {[%clk 0:01:24]}  Ne4 {[%clk 0:00:32]} 30. Rxa5 {[%clk 0:01:19]}  Nxf2 {[%clk 0:00:32]} 31. Rxf2 {[%clk 0:01:15]}  Rf8 {[%clk 0:00:29]} 32. Rd5 {[%clk 0:00:59]}  Bxf2+ {[%clk 0:00:29]} 33. Kh2 {[%clk 0:00:59]}  Rb8 {[%clk 0:00:24]} 34. Rd2 {[%clk 0:00:43]}  Be1 {[%clk 0:00:24]} 35. Re2 {[%clk 0:00:42]}  Bb4 {[%clk 0:00:24]} 36. g4 {[%clk 0:00:40]}  Bc5 {[%clk 0:00:19]} 37. Kg3 {[%clk 0:00:34]}  Bd4 {[%clk 0:00:19]} 38. Kf4 {[%clk 0:00:32]}  Rxb2 {[%clk 0:00:15]} 39. Re4 {[%clk 0:00:32]}  Bc3 {[%clk 0:00:12]} 40. Kf5 {[%clk 0:00:30]}  Kf7 {[%clk 0:00:10]} 41. Rc4 {[%clk 0:00:30]}  Ba5 {[%clk 0:00:07]} 42. Rc5 {[%clk 0:00:28]}  g6+ {[%clk 0:00:06]} 43. Ke4 {[%clk 0:00:28]}  Rb4+ {[%clk 0:00:06]} 44. Kd5 {[%clk 0:00:27]}  Rxa4 {[%clk 0:00:06]} 45. Rb5 {[%clk 0:00:26]}  Bd8 {[%clk 0:00:05]} 46. Rb7+ {[%clk 0:00:25]}  Be7 {[%clk 0:00:05]} 47. h4 {[%clk 0:00:25]}  Rxg4 {[%clk 0:00:04]} 48. h5 {[%clk 0:00:25]}  gxh5 {[%clk 0:00:05]} 49. Ke5 {[%clk 0:00:25]}  h4 {[%clk 0:00:05]} 50. Kf5 {[%clk 0:00:24]}  Rg6 {[%clk 0:00:05]} 51. Rb3 {[%clk 0:00:22]}  Rg3 {[%clk 0:00:02]} 52. Rb4 {[%clk 0:00:19]}  h3 {[%clk 0:00:03]} 53. Rb2 {[%clk 0:00:15]}  Rg2 {[%clk 0:00:03]} 54. Rb3 {[%clk 0:00:14]}  h2 {[%clk 0:00:03]} 55. Rh3 {[%clk 0:00:14]}  Kg7 {[%clk 0:00:02]} 56. Ke4 {[%clk 0:00:13]}  Bd6 {[%clk 0:00:02]} 57. Kf3 {[%clk 0:00:13]}  Rg1 {[%clk 0:00:02]} 58. Rh5 {[%clk 0:00:12]}  h1=Q+ {[%clk 0:00:02]} 59. Rxh1 {[%clk 0:00:12]}  Rxh1 {[%clk 0:00:03]} 60. Ke4 {[%clk 0:00:13]}  Rh6 {[%clk 0:00:03]} 61. Kd5 {[%clk 0:00:14]}  Rg6 {[%clk 0:00:04]} 62. Ke4 {[%clk 0:00:15]}  h5 {[%clk 0:00:05]} 63. Kf5 {[%clk 0:00:16]}  h4 {[%clk 0:00:06]} 64. Ke4 {[%clk 0:00:16]}  h3 {[%clk 0:00:06]} 65. Kf3 {[%clk 0:00:16]}  h2 {[%clk 0:00:07]} 66. Ke4 {[%clk 0:00:17]}  h1=Q+ {[%clk 0:00:08]} 67. Kf5 {[%clk 0:00:17]}  Qf3# {[%clk 0:00:08]} 0-1


[Site "https://www.chess.com"]

[Event "Titled Tuesday Blitz November 07 Late 2023"]
[White "Zirkelbach, Maj"]
[Black "Domingo Nunez, Ruben"]
[WhiteFideId "14613395"]
[BlackFideId "22245570"]
[WhiteElo "2494"]
[BlackElo "2656"]
[Result "1-0"]
[Round "6"]
[TimeControl "180+1"]
[Date "2023.11.07"]
[WhiteClock "0:00:13"]
[BlackClock "0:00:36"]
[Board "56"]

1. d4 {[%clk 0:03:00]}  g6 {[%clk 0:02:58]} 2. c4 {[%clk 0:03:00]}  Bg7 {[%clk 0:02:59]} 3. h4 {[%clk 0:02:58]}  Nf6 {[%clk 0:02:59]} 4. Nc3 {[%clk 0:02:58]}  d6 {[%clk 0:02:59]} 5. e4 {[%clk 0:02:58]}  Nbd7 {[%clk 0:03:00]} 6. Be2 {[%clk 0:02:59]}  e5 {[%clk 0:03:00]} 7. d5 {[%clk 0:02:59]}  h5 {[%clk 0:03:01]} 8. f3 {[%clk 0:02:57]}  a5 {[%clk 0:03:02]} 9. Nh3 {[%clk 0:02:57]}  Nc5 {[%clk 0:03:02]} 10. Nf2 {[%clk 0:02:58]}  Bd7 {[%clk 0:03:02]} 11. Bg5 {[%clk 0:02:55]}  Bh6 {[%clk 0:03:01]} 12. Qd2 {[%clk 0:02:54]}  Bxg5 {[%clk 0:03:01]} 13. Qxg5 {[%clk 0:02:47]}  Qe7 {[%clk 0:02:57]} 14. O-O-O {[%clk 0:02:46]}  Ng8 {[%clk 0:02:56]} 15. Qe3 {[%clk 0:02:45]}  f5 {[%clk 0:02:56]} 16. g3 {[%clk 0:02:41]}  Nf6 {[%clk 0:02:54]} 17. Kb1 {[%clk 0:02:40]}  fxe4 {[%clk 0:02:39]} 18. Nfxe4 {[%clk 0:02:22]}  Nfxe4 {[%clk 0:02:37]} 19. fxe4 {[%clk 0:02:19]}  O-O-O {[%clk 0:02:14]} 20. a3 {[%clk 0:02:11]}  a4 {[%clk 0:02:13]} 21. Rdf1 {[%clk 0:02:06]}  Rdf8 {[%clk 0:02:13]} 22. Bd1 {[%clk 0:01:52]}  Kb8 {[%clk 0:02:12]} 23. Ka2 {[%clk 0:01:04]}  Rf6 {[%clk 0:02:12]} 24. Rxf6 {[%clk 0:01:03]}  Qxf6 {[%clk 0:02:13]} 25. Be2 {[%clk 0:01:01]}  Rf8 {[%clk 0:02:06]} 26. Rf1 {[%clk 0:01:01]}  Qe7 {[%clk 0:02:06]} 27. Qh6 {[%clk 0:00:49]}  Rxf1 {[%clk 0:02:03]} 28. Bxf1 {[%clk 0:00:50]}  Qf6 {[%clk 0:02:04]} 29. Be2 {[%clk 0:00:39]}  Bh3 {[%clk 0:01:51]} 30. Qh7 {[%clk 0:00:36]}  Bg2 {[%clk 0:01:33]} 31. Qg8+ {[%clk 0:00:36]}  Ka7 {[%clk 0:01:23]} 32. Nb5+ {[%clk 0:00:36]}  Kb6 {[%clk 0:01:19]} 33. Qa8 {[%clk 0:00:33]}  Na6 {[%clk 0:01:18]} 34. Qa7+ {[%clk 0:00:32]}  Ka5 {[%clk 0:01:19]} 35. Qxb7 {[%clk 0:00:21]}  Qd8 {[%clk 0:01:03]} 36. c5 {[%clk 0:00:17]}  dxc5 {[%clk 0:00:36]} 37. Nc3 {[%clk 0:00:13]} 1-0


[Site "https://www.chess.com"]

[Event "Titled Tuesday Blitz November 07 Late 2023"]
[White "Oglaza, Oskar"]
[Black "Ehlvest, Jaan"]
[WhiteFideId "1194402"]
[BlackFideId "4500016"]
[WhiteElo "2489"]
[BlackElo "2640"]
[Result "1-0"]
[Round "6"]
[TimeControl "180+1"]
[Date "2023.11.07"]
[WhiteClock "0:00:17"]
[BlackClock "0:00:02"]
[Board "58"]

1. e4 {[%clk 0:03:00]}  c5 {[%clk 0:01:31]} 2. Nf3 {[%clk 0:02:57]}  Nc6 {[%clk 0:01:28]} 3. d4 {[%clk 0:02:51]}  cxd4 {[%clk 0:01:28]} 4. Nxd4 {[%clk 0:02:51]}  Qb6 {[%clk 0:01:29]} 5. Nb3 {[%clk 0:02:43]}  Nf6 {[%clk 0:01:28]} 6. Nc3 {[%clk 0:02:41]}  e6 {[%clk 0:01:28]} 7. Bf4 {[%clk 0:02:37]}  Bb4 {[%clk 0:01:26]} 8. Bd3 {[%clk 0:02:04]}  d5 {[%clk 0:01:22]} 9. exd5 {[%clk 0:01:25]}  Nxd5 {[%clk 0:01:21]} 10. Bd2 {[%clk 0:01:26]}  Nxc3 {[%clk 0:01:20]} 11. bxc3 {[%clk 0:01:27]}  Bd6 {[%clk 0:01:17]} 12. O-O {[%clk 0:01:25]}  h5 {[%clk 0:01:17]} 13. c4 {[%clk 0:01:20]}  Qc7 {[%clk 0:01:16]} 14. h3 {[%clk 0:01:21]}  Bd7 {[%clk 0:01:10]} 15. Qe2 {[%clk 0:01:15]}  b6 {[%clk 0:01:04]} 16. Bc3 {[%clk 0:01:10]}  Bh2+ {[%clk 0:01:00]} 17. Kh1 {[%clk 0:01:09]}  Be5 {[%clk 0:01:00]} 18. Bxe5 {[%clk 0:01:07]}  Nxe5 {[%clk 0:01:00]} 19. Nd4 {[%clk 0:01:02]}  Rd8 {[%clk 0:00:54]} 20. f4 {[%clk 0:00:56]}  Nxd3 {[%clk 0:00:47]} 21. cxd3 {[%clk 0:00:57]}  Kf8 {[%clk 0:00:42]} 22. Rae1 {[%clk 0:00:54]}  g6 {[%clk 0:00:38]} 23. Nf3 {[%clk 0:00:53]}  Bc6 {[%clk 0:00:36]} 24. Qb2 {[%clk 0:00:46]}  Kg8 {[%clk 0:00:31]} 25. Qf6 {[%clk 0:00:38]}  Bxf3 {[%clk 0:00:30]} 26. Rxf3 {[%clk 0:00:38]}  h4 {[%clk 0:00:25]} 27. Re5 {[%clk 0:00:38]}  Qd7 {[%clk 0:00:19]} 28. f5 {[%clk 0:00:34]}  gxf5 {[%clk 0:00:15]} 29. Rfe3 {[%clk 0:00:28]}  Rh7 {[%clk 0:00:15]} 30. Qg5+ {[%clk 0:00:22]}  Rg7 {[%clk 0:00:14]} 31. Qxh4 {[%clk 0:00:22]}  Rc8 {[%clk 0:00:14]} 32. Rg3 {[%clk 0:00:21]}  Rxg3 {[%clk 0:00:12]} 33. Qxg3+ {[%clk 0:00:21]}  Kf8 {[%clk 0:00:13]} 34. Re3 {[%clk 0:00:21]}  Rc5 {[%clk 0:00:11]} 35. Qg5 {[%clk 0:00:21]}  Qd4 {[%clk 0:00:08]} 36. Rg3 {[%clk 0:00:21]}  Ke8 {[%clk 0:00:09]} 37. Qg8+ {[%clk 0:00:20]}  Ke7 {[%clk 0:00:09]} 38. Qb8 {[%clk 0:00:19]}  f4 {[%clk 0:00:08]} 39. Rg8 {[%clk 0:00:18]}  Re5 {[%clk 0:00:07]} 40. Qf8+ {[%clk 0:00:17]}  Kf6 {[%clk 0:00:07]} 41. Qg7+ {[%clk 0:00:18]}  Ke7 {[%clk 0:00:07]} 42. Qg5+ {[%clk 0:00:17]}  Kd7 {[%clk 0:00:07]} 43. Qd8+ {[%clk 0:00:17]}  Kc6 {[%clk 0:00:02]} 44. Qxd4 {[%clk 0:00:17]} 1-0


[Site "https://www.chess.com"]

[Event "Titled Tuesday Blitz November 07 Late 2023"]
[White "Amburgy, Ryan"]
[Black "Mazurkiewicz, Michal"]
[WhiteFideId "30924820"]
[BlackFideId "1124943"]
[WhiteElo "2640"]
[BlackElo "2448"]
[Result "1-0"]
[Round "6"]
[TimeControl "180+1"]
[Date "2023.11.07"]
[WhiteClock "0:00:08"]
[BlackClock "0:00:05"]
[Board "60"]

1. d4 {[%clk 0:03:00]}  Nf6 {[%clk 0:02:59]} 2. c4 {[%clk 0:03:01]}  e5 {[%clk 0:02:58]} 3. dxe5 {[%clk 0:03:00]}  Ng4 {[%clk 0:02:58]} 4. Bf4 {[%clk 0:03:00]}  Nc6 {[%clk 0:02:56]} 5. Nf3 {[%clk 0:03:00]}  Bb4+ {[%clk 0:02:56]} 6. Nbd2 {[%clk 0:03:00]}  Qe7 {[%clk 0:02:56]} 7. e3 {[%clk 0:03:01]}  Ncxe5 {[%clk 0:02:54]} 8. Nxe5 {[%clk 0:03:00]}  Nxe5 {[%clk 0:02:54]} 9. a3 {[%clk 0:02:58]}  Bc5 {[%clk 0:02:54]} 10. b4 {[%clk 0:02:51]}  Bd4 {[%clk 0:02:52]} 11. Rb1 {[%clk 0:02:47]}  Ng6 {[%clk 0:02:52]} 12. Bg3 {[%clk 0:02:46]}  d6 {[%clk 0:02:47]} 13. Bd3 {[%clk 0:02:43]}  O-O {[%clk 0:02:41]} 14. Qc2 {[%clk 0:02:23]}  f5 {[%clk 0:02:17]} 15. O-O {[%clk 0:02:23]}  Be5 {[%clk 0:02:13]} 16. Nf3 {[%clk 0:02:18]}  Be6 {[%clk 0:01:14]} 17. Rfe1 {[%clk 0:02:06]}  Kh8 {[%clk 0:01:12]} 18. Nd4 {[%clk 0:02:00]}  Bxd4 {[%clk 0:01:00]} 19. exd4 {[%clk 0:02:00]}  f4 {[%clk 0:01:00]} 20. d5 {[%clk 0:01:58]}  fxg3 {[%clk 0:00:49]} 21. hxg3 {[%clk 0:01:59]}  Ne5 {[%clk 0:00:42]} 22. dxe6 {[%clk 0:01:59]}  Rf6 {[%clk 0:00:33]} 23. Be4 {[%clk 0:01:48]}  c6 {[%clk 0:00:30]} 24. f4 {[%clk 0:01:40]}  Ng4 {[%clk 0:00:25]} 25. Bf3 {[%clk 0:01:33]}  Nh6 {[%clk 0:00:23]} 26. b5 {[%clk 0:01:25]}  c5 {[%clk 0:00:20]} 27. b6 {[%clk 0:01:11]}  a6 {[%clk 0:00:17]} 28. Qe4 {[%clk 0:01:03]}  Rb8 {[%clk 0:00:18]} 29. Rbd1 {[%clk 0:01:03]}  Nf5 {[%clk 0:00:18]} 30. Kf2 {[%clk 0:00:57]}  Nd4 {[%clk 0:00:16]} 31. Qd5 {[%clk 0:00:54]}  Nxf3 {[%clk 0:00:10]} 32. Kxf3 {[%clk 0:00:50]}  Rd8 {[%clk 0:00:10]} 33. Re5 {[%clk 0:00:32]}  h6 {[%clk 0:00:09]} 34. g4 {[%clk 0:00:18]}  g5 {[%clk 0:00:08]} 35. f5 {[%clk 0:00:18]}  Kg7 {[%clk 0:00:07]} 36. Ree1 {[%clk 0:00:18]}  Rff8 {[%clk 0:00:04]} 37. Rh1 {[%clk 0:00:16]}  Rf6 {[%clk 0:00:05]} 38. Kg3 {[%clk 0:00:16]}  Kh7 {[%clk 0:00:05]} 39. Qe4 {[%clk 0:00:14]}  Kg7 {[%clk 0:00:05]} 40. Rd5 {[%clk 0:00:14]}  Kh7 {[%clk 0:00:04]} 41. a4 {[%clk 0:00:14]}  Kg7 {[%clk 0:00:04]} 42. a5 {[%clk 0:00:14]}  Rff8 {[%clk 0:00:03]} 43. Rh5 {[%clk 0:00:09]}  Rde8 {[%clk 0:00:02]} 44. Rd1 {[%clk 0:00:09]}  Qf6 {[%clk 0:00:03]} 45. Qf3 {[%clk 0:00:07]}  Rxe6 {[%clk 0:00:01]} 46. Rdh1 {[%clk 0:00:06]}  Qe5+ {[%clk 0:00:02]} 47. Kh3 {[%clk 0:00:06]}  Ref6 {[%clk 0:00:01]} 48. Rd1 {[%clk 0:00:06]}  Qf4 {[%clk 0:00:01]} 49. Qxf4 {[%clk 0:00:06]}  gxf4 {[%clk 0:00:02]} 50. Rf1 {[%clk 0:00:06]}  R8f7 {[%clk 0:00:03]} 51. Rxf4 {[%clk 0:00:06]}  d5 {[%clk 0:00:03]} 52. cxd5 {[%clk 0:00:06]}  Rd6 {[%clk 0:00:04]} 53. Re4 {[%clk 0:00:06]}  Rfd7 {[%clk 0:00:04]} 54. Re6 {[%clk 0:00:07]}  Rxd5 {[%clk 0:00:05]} 55. Rg6+ {[%clk 0:00:07]}  Kf7 {[%clk 0:00:05]} 56. Rhxh6 {[%clk 0:00:07]}  Rd3+ {[%clk 0:00:05]} 57. Kh2 {[%clk 0:00:08]}  Rd2 {[%clk 0:00:05]} 58. Rh7+ {[%clk 0:00:08]}  Ke8 {[%clk 0:00:05]} 59. Rg8# {[%clk 0:00:08]} 1-0


[Site "https://www.chess.com"]